fUSD/lending_fUSD_20240909
["ID","MTS","AMOUNT","RATE_DAILY","PERIOD"]
[337594056,1725880232821,-3941.91,0.00012767,2]
[337594057,1725880232832,-150.0,0.00012769,2]
[337594058,1725880232841,-2374.05122,0.0001277,2]
[337594059,1725880232850,-1155.00986551,0.00012774,2]
[337594060,1725880232859,-150.0,0.00012786,2]
[337594061,1725880232869,-509.5205,0.00012796,2]
[337594062,1725880232878,-150.0,0.00012799,2]
[337594063,1725880232887,-17614.26532674,0.000128,2]
[337594064,1725880232906,-1706.98,0.000128,2]
[337594065,1725880232918,-1335.27392991,0.000128,2]
[337594066,1725880232929,-22264.98208702,0.000128,2]
[337594067,1725880232939,-183.88357621,0.000128,2]
[337594068,1725880232958,-814.99724662,0.000128,2]
[337594069,1725880232970,-1196.32788,0.000128,2]
[337594070,1725880232989,-300.0,0.000128,2]
[337594071,1725880233001,-714.46336982,0.000128,2]
[337594072,1725880233012,-960.92161359,0.000128,2]
[337594073,1725880233024,-880.85332135,0.000128,2]
[337594080,1725880238288,-2022.99819241,0.000128,2]
[337594081,1725880238299,-241.454,0.000128,2]
[337594082,1725880238309,-170.988,0.000128,2]
[337594083,1725880238318,-585.08,0.000128,2]
[337594084,1725880238329,-427.61,0.000128,2]
[337594085,1725880238340,-315.36,0.000128,2]
[337594086,1725880238351,-422.24,0.000128,2]
[337594087,1725880238361,-257.95706756,0.000128,2]
[337594088,1725880238373,-164.28293244,0.000128,2]
[337594089,1725880238383,-422.24,0.000128,2]
[337594090,1725880238392,-427.61,0.000128,2]
[337594091,1725880238402,-422.24,0.000128,2]
[337594092,1725880238411,-420.54,0.000128,2]
[337594093,1725880238420,-427.61,0.000128,2]
[337594094,1725880238429,-422.24,0.000128,2]
[337594095,1725880238438,-150.0,0.00012802,2]
[337594096,1725880238448,-149.67758602,0.00012803,2]
[337594097,1725880238460,-0.32241398,0.00012803,2]
[337594098,1725880238469,-1500.0,0.00012815,2]
[337594099,1725880238478,-150.0,0.00012827,2]
[337594100,1725880238487,-1500.0,0.00012828,2]
[337594101,1725880238496,-150.0,0.00012834,2]
[337594102,1725880238505,-150.0,0.00012841,2]
[337594103,1725880238514,-150.0,0.00012846,2]
[337594104,1725880238523,-1500.0,0.00012849,2]
[337594105,1725880238532,-150.0,0.00012853,2]
[337594106,1725880238541,-1500.0,0.00012866,2]
[337594107,1725880238550,-150.0,0.00012877,2]
[337594108,1725880238560,-542.48220202,0.00012877,2]
[337594109,1725880238573,-957.51779798,0.00012877,2]
[337594110,1725880238585,-150.0,0.00012889,2]
[337594111,1725880238595,-150.0,0.0001289,2]
[337594112,1725880238604,-8313.87583101,0.00012896,2]
[337594113,1725880238615,-2107.96685003,0.00012896,2]
[337594114,1725880238626,-5550.579,0.00012896,2]
[337594115,1725880238645,-394.12782113,0.00012896,2]
[337594116,1725880238658,-448.7075297,0.00012896,2]
[337594117,1725880238670,-504.46416423,0.00012896,2]
[337594120,1725880238691,-1262.14798967,0.00012896,2]
[337594122,1725880238703,-564.662132,0.00012896,2]
[337594124,1725880238714,-585.41820824,0.00012896,2]
[337594126,1725880238730,-5000.0,0.00012896,2]
[337594128,1725880238741,-1595.48310882,0.00012896,2]
[337594130,1725880238752,-8928.78405659,0.00012896,2]
[337594132,1725880238763,-21779.21936827,0.00012896,2]
[337594134,1725880238775,-323.64407991,0.00012896,2]
[337594137,1725880238794,-19584.17613878,0.00012896,2]
[337594139,1725880238805,-331.4980101,0.00012896,2]
[337594141,1725880238816,-1470.87908501,0.00012896,2]
[337594143,1725880238827,-1879.79073718,0.00012896,2]
[337594213,1725880240349,-311.6,0.00012896,2]
[337594214,1725880240360,-1335.0,0.00012896,2]
[337594215,1725880240371,-1198.23950659,0.00012896,2]
[337594216,1725880240383,-16529.73638274,0.00012896,2]
[337594217,1725880240392,-150.0,0.00012897,2]
[337594218,1725880240402,-504.925386,0.000129,2]
[337594219,1725880240411,-316.0156951,0.000129,2]
[337594220,1725880240420,-422.24,0.000129,2]
[337594221,1725880240430,-427.61,0.000129,2]
[337594222,1725880240439,-422.24,0.000129,2]
[337594223,1725880240448,-752.42,0.000129,2]
[337594224,1725880240457,-422.24,0.000129,2]
[337594225,1725880240467,-427.61,0.000129,2]
[337594226,1725880240478,-422.24,0.000129,2]
[337594227,1725880240489,-752.42,0.000129,2]
[337594228,1725880240498,-213.67,0.000129,2]
[337594229,1725880240507,-427.61,0.000129,2]
[337594230,1725880240516,-752.42,0.000129,2]
[337594231,1725880240525,-422.24,0.000129,2]
[337594232,1725880240535,-150.0,0.000129,2]
[337594233,1725880240544,-752.42,0.000129,2]
[337594234,1725880240554,-150.0,0.000129,2]
[337594235,1725880240563,-422.24,0.000129,2]
[337594236,1725880240573,-427.61,0.000129,2]
[337594237,1725880240582,-427.61,0.000129,2]
[337594238,1725880240591,-422.24,0.000129,2]
[337594239,1725880240601,-752.42,0.000129,2]
[337594240,1725880240615,-752.42,0.000129,2]
[337594241,1725880240626,-422.24,0.000129,2]
[337594242,1725880240635,-427.61,0.000129,2]
[337594243,1725880240644,-752.42,0.000129,2]
[337594244,1725880240654,-427.61,0.000129,2]
[337594245,1725880240664,-422.24,0.000129,2]
[337594246,1725880240673,-422.24,0.000129,2]
[337594247,1725880240683,-427.61,0.000129,2]
[337594248,1725880240692,-422.24,0.000129,2]
[337594249,1725880240702,-752.42,0.000129,2]
[337594250,1725880240711,-7500.0,0.000129,2]
[337594251,1725880240720,-499.99999999,0.000129,2]
[337594252,1725880240730,-150.0,0.00012905,2]
[337594253,1725880240739,-150.0,0.00012906,2]
[337594254,1725880240749,-1500.0,0.00012911,2]
[337594255,1725880240759,-150.0,0.00012915,2]
[337594256,1725880240768,-150.0,0.00012917,2]
[337594257,1725880240777,-1500.0,0.00012918,2]
[337594258,1725880240787,-150.0,0.00012919,2]
[337594259,1725880240796,-1500.0,0.00012919,2]
[337594260,1725880240806,-150.0,0.0001292,2]
[337594261,1725880240815,-150.0,0.00012926,2]
[337594262,1725880240824,-150.0,0.00012939,2]
[337594263,1725880240834,-1500.0,0.0001295,2]
[337594264,1725880240844,-150.0,0.00012951,2]
[337594265,1725880240853,-150.0,0.00012957,2]
[337594266,1725880240863,-150.0,0.00012959,2]
[337594267,1725880240872,-1561.61139523,0.00012963,2]
[337594268,1725880240882,-160.15552041,0.00012973,2]
[337594269,1725880240892,-154.13431645,0.00012973,2]
[337594270,1725880240902,-155.13518866,0.00012973,2]
[337594271,1725880240914,-170.14826962,0.00012973,2]
[337594272,1725880240924,-150.13082612,0.00012973,2]
[337594273,1725880240934,-150.13082771,0.00012973,2]
[337594274,1725880240943,-160.13954788,0.00012973,2]
[337594275,1725880240952,-150.13082612,0.00012973,2]
[337594276,1725880240961,-160.13954788,0.00012973,2]
[337594277,1725880240971,-160.13954957,0.00012973,2]
[337594278,1725880240980,-150.13082612,0.00012973,2]
[337594279,1725880240990,-160.13954788,0.00012973,2]
[337594280,1725880240999,-200.17443486,0.00012973,2]
[337594281,1725880241009,-500.0,0.00012973,2]
[337594282,1725880241019,-515.6669376,0.00012973,2]
[337594283,1725880241028,-160.0,0.00012973,2]
[337594284,1725880241038,-150.0,0.00012976,2]
[337594285,1725880241047,-150.0,0.00012978,2]
[337594286,1725880241056,-150.0,0.00012986,2]
[337594287,1725880241066,-150.56,0.0001299,2]
[337594288,1725880241077,-150.56,0.0001299,2]
[337594289,1725880241088,-773.74126147,0.0001299,2]
[337594290,1725880241097,-773.74126147,0.0001299,2]
[337594291,1725880241106,-773.74126147,0.0001299,2]
[337594292,1725880241116,-2101.0729468,0.00012996,2]
[337594293,1725880241126,-500.0,0.00012999,2]
[337594294,1725880241136,-500.0,0.00012999,2]
[337594295,1725880241147,-500.0,0.00012999,2]
[337594296,1725880241158,-191.44254607,0.00012999,2]
[337594297,1725880241168,-1000.629,0.00012999,2]
[337594298,1725880241177,-456.44079395,0.00012999,2]
[337594299,1725880241188,-754.0,0.00013,2]
[337594300,1725880241198,-55366.43636178,0.00013,2]
[337594301,1725880241211,-3033.07094716,0.00013,2]
[337594302,1725880241224,-533.82,0.00013,2]
[337594303,1725880241254,-695.95800116,0.00013,2]
[337594304,1725880241266,-39934.1296875,0.00013,2]
[337594305,1725880241279,-278.90148228,0.00013,2]
[337594306,1725880241310,-2495.58714316,0.00013,2]
[337594307,1725880241321,-874.76439994,0.00013,2]
[337594314,1725880243509,-38874.24022035,0.00013,2]
[337594315,1725880243520,-12732.91714098,0.00013,2]
[337594316,1725880243532,-33717.400356,0.00013,2]
[337594317,1725880243543,-16890.90505468,0.00013,2]
[337594318,1725880243595,-601421.39144246,0.00013,2]
[337594319,1725880244046,-473.25526323,0.00013,2]
[337594320,1725880244079,-566.35561271,0.00013,2]
[337594322,1725880247310,-4011.40893523,0.00013,2]
[337594323,1725880247321,-2066.50353201,0.00013,2]
[337594324,1725880247352,-612.34305062,0.00013,2]
[337594325,1725880247364,-432.05724792,0.00013,2]
[337594326,1725880247389,-5852.2,0.00013,2]
[337594327,1725880247402,-8499.85506002,0.00013,2]
[337594328,1725880247415,-16288.40638518,0.00013,2]
[337594329,1725880255085,662.03,9.912e-05,2]
[337594330,1725880255449,662.03,0.00012176,2]
[337594331,1725880260121,495.93,0.0001183,2]
[337594332,1725880269239,300.0,0.000123,4]
[337594333,1725880271348,600.0,0.000124,4]
[337594334,1725880273513,1000.0,0.000125,4]
[337594335,1725880298364,500.0,0.00011164,2]
[337594337,1725880319904,251.8636,0.00012434,2]
[337594338,1725880327289,250.0,0.00011831,2]
[337594339,1725880357392,3638.300302,0.00025,60]
[337594340,1725880374060,253.47,0.00011831,2]
[337594341,1725880393951,203.0,0.0001238,2]
[337594342,1725880394573,203.0,0.0001218,2]
[337594343,1725880394914,203.0,0.0001198,2]
[337594344,1725880395325,203.0,0.0001178,2]
[337594345,1725880395604,203.0,0.0001157,2]
[337594346,1725880395931,203.0,0.0001137,2]
[337594347,1725880396685,387.4,0.00012,2]
[337594348,1725880397010,500.0,0.00012,2]
[337594349,1725880397818,500.0,0.00012,2]
[337594350,1725880399755,250.35,0.00012,2]
[337594351,1725880423774,250.0,0.00012319,2]
[337594352,1725880424469,168.25,0.00012319,2]
[337594353,1725880493736,250.0,0.00012123,2]
[337594354,1725880513037,151.5,3.62e-06,2]
[337594355,1725880525818,165.63091281,0.000125,2]
[337594356,1725880614081,750.0,0.00011,2]
[337594357,1725880638480,2000.0,0.00025,60]
[337594358,1725880715783,443.24,0.00010959,2]
[337594359,1725880761589,633.65,0.00010154,2]
[337594360,1725880761825,633.65,0.00012417,2]
[337594361,1725880791677,14701.89,0.00012071,2]
[337594362,1725880828046,603.25,0.00012071,2]
[337594363,1725880829665,500.64432356,0.00012,2]
[337594364,1725880931152,250.0,0.00012066,2]
[337594365,1725880949450,253.48,0.00012066,2]
[337594366,1725880999022,250.0,0.00012025,2]
[337594370,1725881225487,150.21,0.00010959,2]
[337594371,1725881226614,300.0,0.000122,4]
[337594372,1725881228788,700.0,0.000123,4]
[337594373,1725881230956,1000.0,0.000124,4]
[337594374,1725881233419,1400.0,0.000125,4]
[337594379,1725881259491,581.66,0.00010078,2]
[337594380,1725881259710,581.66,0.00012342,2]
[337594386,1725881405231,517.4,0.00012002,2]
[337594397,1725881431486,-178.34,0.00012549,2]
[337594400,1725881431496,-203.0,0.0001258,2]
[337594404,1725881431505,-1700.0,0.000126,4]
[337594407,1725881431515,-300.0,0.000127,4]
[337594410,1725881431525,-421.39411001,0.00012754,2]
[337594412,1725881431535,-203.0,0.0001278,2]
[337594413,1725881431545,-212.0,0.0001278,2]
[337594414,1725881431554,-150.0,0.00012795,2]
[337594415,1725881431564,-31647.05698275,0.00012796,2]
[337594416,1725881431596,-2700.0,0.00012796,2]
[337594417,1725881431607,-4507.06363913,0.00012796,2]
[337594418,1725881431619,-555.249,0.00012796,2]
[337594419,1725881431648,-404.0,0.00012796,2]
[337594420,1725881431659,-845.87545876,0.00012796,2]
[337594421,1725881431670,-1028.79,0.00012796,2]
[337594422,1725881431682,-9669.50989184,0.00012796,2]
[337594423,1725881431693,-1249.78872132,0.00012796,2]
[337594424,1725881431716,-3186.53480063,0.00012796,2]
[337594425,1725881431727,-6036.6456329,0.00012796,2]
[337594426,1725881431738,-21101.30249238,0.00012796,2]
[337594427,1725881431754,-7776.89948567,0.00012796,2]
[337594428,1725881431764,-391.0067577,0.00012796,2]
[337594429,1725881431780,-752.17210597,0.00012796,2]
[337594430,1725881431790,-406.46096392,0.00012796,2]
[337594431,1725881431806,-7539.43401926,0.00012796,2]
[337594463,1725881438067,-202.21004777,0.00012796,2]
[337594465,1725881438077,-318.96188192,0.00012796,2]
[337594467,1725881438089,-1169.55400002,0.00012796,2]
[337594469,1725881438100,-526.17759152,0.00012796,2]
[337594471,1725881438127,-353.01173433,0.00012796,2]
[337594472,1725881438172,-8669.38989221,0.00012796,2]
[337594473,1725881438181,-2354.23,0.00012796,2]
[337594474,1725881438192,-2062.3757,0.000128,2]
[337594475,1725881438201,-5893.509,0.000128,2]
[337594476,1725881438210,-422.24,0.000128,2]
[337594477,1725881438220,-426.11,0.000128,2]
[337594478,1725881438230,-422.24,0.000128,2]
[337594479,1725881438240,-422.24,0.000128,2]
[337594480,1725881438249,-419.92,0.000128,2]
[337594481,1725881438258,-422.24,0.000128,2]
[337594482,1725881438267,-1075.45,0.000128,2]
[337594483,1725881438276,-2440.49,0.000128,2]
[337594484,1725881438286,-422.24,0.000128,2]
[337594485,1725881438295,-5624.16579041,0.000128,2]
[337594486,1725881438304,-422.24,0.000128,2]
[337594487,1725881438313,-499.99,0.000128,2]
[337594488,1725881438322,-340.74,0.000128,2]
[337594489,1725881438332,-300.0,0.000128,4]
[337594490,1725881438341,-400.49,0.000128,2]
[337594491,1725881438351,-158.428,0.00012801,2]
[337594492,1725881438360,-261.184,0.00012801,2]
[337594493,1725881438369,-150.99,0.00012801,2]
[337594494,1725881438378,-396.29,0.00012801,2]
[337594495,1725881438387,-5624.16579032,0.00012811,2]
[337594496,1725881438397,-10000.0,0.0001282,2]
[337594497,1725881438407,-5624.16579032,0.00012822,2]
[337594498,1725881438416,-5624.16579032,0.00012833,2]
[337594499,1725881438426,-5624.16579032,0.00012844,2]
[337594500,1725881438437,-5624.16579032,0.00012856,2]
[337594501,1725881438448,-5624.16579032,0.00012867,2]
[337594502,1725881438458,-166.23607,0.0001287,2]
[337594503,1725881438467,-5624.16579032,0.00012878,2]
[337594504,1725881438476,-59308.54384301,0.0001288,2]
[337594505,1725881438486,-5624.16579032,0.00012889,2]
[337594506,1725881438495,-391.88821597,0.0001289,2]
[337594507,1725881438504,-1130.6357,0.000129,2]
[337594508,1725881438513,-152.79080492,0.000129,2]
[337594509,1725881438522,-150.99,0.000129,2]
[337594510,1725881438531,-427.61,0.000129,2]
[337594511,1725881438541,-422.24,0.000129,2]
[337594512,1725881438551,-274.76679836,0.000129,2]
[337594513,1725881438560,-7500.0,0.000129,2]
[337594514,1725881438570,-5624.16579032,0.000129,2]
[337594515,1725881438579,-300.0,0.000129,4]
[337594516,1725881438591,-328.28053857,0.000129,2]
[337594517,1725881438601,-3918.16145594,0.000129,2]
[337594518,1725881438611,-500.0,0.00012973,2]
[337594519,1725881438620,-150.13417239,0.00012973,2]
[337594520,1725881438630,-196.06903244,0.00012973,2]
[337594521,1725881438640,-400.38227572,0.00012973,2]
[337594522,1725881438649,-500.0,0.00012973,2]
[337594523,1725881438659,-500.0,0.00012973,2]
[337594524,1725881438669,-600.0,0.00012973,2]
[337594525,1725881438680,-203.0,0.0001299,2]
[337594526,1725881438691,-212.0,0.0001299,2]
[337594527,1725881438701,-386.87063074,0.0001299,2]
[337594528,1725881438710,-386.87063074,0.0001299,2]
[337594529,1725881438720,-386.87063074,0.0001299,2]
[337594530,1725881438730,-500.0,0.00012999,2]
[337594531,1725881438740,-331.73742237,0.00012999,2]
[337594532,1725881438750,-151.98346748,0.00012999,2]
[337594533,1725881438760,-1479.82642066,0.00012999,2]
[337594534,1725881438770,-6794.52417564,0.00012999,2]
[337594535,1725881438779,-2149.2725073,0.00012999,2]
[337594536,1725881438788,-5372.6881041,0.00012999,2]
[337594537,1725881438798,-517.436195,0.00012999,2]
[337594538,1725881438807,-517.436195,0.00012999,2]
[337594539,1725881438816,-378.164824,0.00012999,2]
[337594540,1725881438826,-378.164824,0.00012999,2]
[337594541,1725881438835,-151.0,0.00012999,2]
[337594542,1725881438845,-46785.2428116,0.00012999,2]
[337594543,1725881438967,-151.0,0.00012999,2]
[337594544,1725881438977,-240.130611,0.00012999,2]
[337594545,1725881438986,-897.0,0.00013,2]
[337594546,1725881438995,-1891856.78366033,0.00013,2]
[337594547,1725881439251,-424.79146568,0.00013,2]
[337594548,1725881439263,-1244.54999999,0.00013,2]
[337594549,1725881440266,-2268.5,0.0001282,2]
[337594550,1725881440277,-1563.01664719,0.0001282,2]
[337594551,1725881440316,-608.4720722,0.0001282,2]
[337594552,1725881440328,-1352.59422969,0.0001282,2]
[337594553,1725881440340,-4207.41705092,0.0001282,2]
[337594554,1725881440349,-240.130611,0.00012999,2]
[337594555,1725881440358,-60629.275934,0.00013,2]
[337594556,1725881440369,-645.18180464,0.00013,2]
[337594557,1725881440380,-1015.75187423,0.00013,2]
[337594558,1725881440411,-23473.51817953,0.00013,2]
[337594559,1725881440423,-3611904.66098046,0.00013,2]
[337594560,1725881440433,-5389751.97808919,0.00013,2]
[337594561,1725881440446,-1700.80946594,0.00013,2]
[337594562,1725881440456,-500.0,0.00013,2]
[337594563,1725881440467,-171.21122,0.00013,2]
[337594564,1725881440476,-171.21122,0.00013,2]
[337594565,1725881440486,-151.0,0.00013,2]
[337594566,1725881440495,-151.0,0.00013,2]
[337594567,1725881440504,-151.0,0.00013,2]
[337594568,1725881440513,-151.0,0.00013,2]
[337594569,1725881440522,-199.634414,0.00013,2]
[337594570,1725881440531,-767.482344,0.00013,2]
[337594571,1725881440540,-767.482344,0.00013,2]
[337594572,1725881440550,-308.483261,0.00013,2]
[337594573,1725881440559,-308.483261,0.00013,2]
[337594574,1725881440569,-192.429178,0.00013,2]
[337594575,1725881440578,-151.0,0.00013,2]
[337594576,1725881440588,-151.0,0.00013,2]
[337594577,1725881440598,-192.429178,0.00013,2]
[337594578,1725881440607,-151.0,0.00013,2]
[337594579,1725881440616,-164.082325,0.00013,2]
[337594580,1725881440625,-151.0,0.00013,2]
[337594581,1725881440636,-151.0,0.00013,2]
[337594582,1725881440645,-151.0,0.00013,2]
[337594583,1725881440655,-151.0,0.00013,2]
[337594584,1725881440663,-151.0,0.00013,2]
[337594585,1725881440674,-151.0,0.00013,2]
[337594586,1725881440684,-151.0,0.00013,2]
[337594587,1725881440693,-151.0,0.00013,2]
[337594588,1725881440702,-151.0,0.00013,2]
[337594589,1725881440712,-151.0,0.00013,2]
[337594590,1725881440721,-151.0,0.00013,2]
[337594591,1725881440730,-151.0,0.00013,2]
[337594592,1725881440739,-151.0,0.00013,2]
[337594593,1725881440750,-151.0,0.00013,2]
[337594594,1725881440759,-201.77415,0.00013,2]
[337594595,1725881440768,-201.77415,0.00013,2]
[337594596,1725881440777,-201.77415,0.00013,2]
[337594597,1725881440786,-201.77415,0.00013,2]
[337594598,1725881440795,-201.77415,0.00013,2]
[337594599,1725881440804,-201.77415,0.00013,2]
[337594600,1725881440813,-201.77415,0.00013,2]
[337594601,1725881440822,-201.77415,0.00013,2]
[337594602,1725881440831,-151.0,0.00013,2]
[337594603,1725881440840,-151.0,0.00013,2]
[337594604,1725881440849,-151.0,0.00013,2]
[337594605,1725881440859,-151.0,0.00013,2]
[337594606,1725881440868,-151.0,0.00013,2]
[337594607,1725881440876,-151.0,0.00013,2]
[337594608,1725881440885,-151.0,0.00013,2]
[337594609,1725881440895,-151.0,0.00013,2]
[337594610,1725881440904,-151.05856,0.00013,2]
[337594611,1725881440913,-208.226029,0.00013,2]
[337594612,1725881440922,-208.226029,0.00013,2]
[337594613,1725881440931,-208.226029,0.00013,2]
[337594614,1725881440940,-208.226029,0.00013,2]
[337594615,1725881440948,-208.226029,0.00013,2]
[337594616,1725881440958,-208.226029,0.00013,2]
[337594617,1725881440967,-208.226029,0.00013,2]
[337594618,1725881440976,-208.226029,0.00013,2]
[337594619,1725881440984,-151.0,0.00013,2]
[337594620,1725881440993,-151.0,0.00013,2]
[337594621,1725881441002,-151.0,0.00013,2]
[337594622,1725881441011,-151.0,0.00013,2]
[337594623,1725881441020,-247.14942,0.00013,2]
[337594624,1725881441029,-247.14942,0.00013,2]
[337594625,1725881441038,-151.0,0.00013,2]
[337594626,1725881441047,-247.14942,0.00013,2]
[337594627,1725881441056,-151.0,0.00013,2]
[337594628,1725881441065,-151.0,0.00013,2]
[337594629,1725881441075,-247.14942,0.00013,2]
[337594630,1725881441084,-151.0,0.00013,2]
[337594631,1725881441092,-247.14942,0.00013,2]
[337594632,1725881441101,-247.14942,0.00013,2]
[337594633,1725881441111,-151.0,0.00013,2]
[337594634,1725881441120,-247.14942,0.00013,2]
[337594635,1725881441129,-151.0,0.00013,2]
[337594636,1725881441138,-247.14942,0.00013,2]
[337594637,1725881441147,-151.0,0.00013,2]
[337594638,1725881441156,-184.078188,0.00013,2]
[337594639,1725881441166,-168.507862,0.00013,2]
[337594640,1725881441174,-235.213511,0.00013,2]
[337594641,1725881441183,-235.213511,0.00013,2]
[337594642,1725881441192,-235.213511,0.00013,2]
[337594643,1725881441201,-235.213511,0.00013,2]
[337594644,1725881441210,-235.213511,0.00013,2]
[337594645,1725881441219,-235.213511,0.00013,2]
[337594646,1725881441228,-235.213511,0.00013,2]
[337594647,1725881441237,-235.213511,0.00013,2]
[337594648,1725881441246,-151.0,0.00013,2]
[337594649,1725881441254,-151.0,0.00013,2]
[337594650,1725881441264,-151.0,0.00013,2]
[337594651,1725881441272,-255.640538,0.00013,2]
[337594652,1725881441281,-263.500246,0.00013,2]
[337594653,1725881441290,-297.607661,0.00013,2]
[337594654,1725881441299,-263.500246,0.00013,2]
[337594655,1725881441309,-297.607661,0.00013,2]
[337594656,1725881441318,-297.607661,0.00013,2]
[337594657,1725881441327,-297.607661,0.00013,2]
[337594658,1725881441335,-297.607661,0.00013,2]
[337594659,1725881441344,-263.500246,0.00013,2]
[337594660,1725881441353,-297.607661,0.00013,2]
[337594661,1725881441362,-263.500246,0.00013,2]
[337594662,1725881441371,-297.607661,0.00013,2]
[337594663,1725881441380,-297.607661,0.00013,2]
[337594664,1725881441389,-360.220366,0.00013,2]
[337594665,1725881441398,-360.220366,0.00013,2]
[337594666,1725881441407,-360.220366,0.00013,2]
[337594667,1725881441417,-360.220366,0.00013,2]
[337594668,1725881441426,-263.500246,0.00013,2]
[337594669,1725881441435,-263.500246,0.00013,2]
[337594670,1725881441450,-263.500246,0.00013,2]
[337594671,1725881441459,-263.500246,0.00013,2]
[337594672,1725881441468,-360.220366,0.00013,2]
[337594673,1725881441478,-360.220366,0.00013,2]
[337594674,1725881441487,-360.220366,0.00013,2]
[337594675,1725881441496,-360.220366,0.00013,2]
[337594676,1725881441505,-151.0,0.00013,2]
[337594677,1725881441515,-151.0,0.00013,2]
[337594678,1725881441523,-151.0,0.00013,2]
[337594679,1725881441532,-151.0,0.00013,2]
[337594680,1725881441541,-151.0,0.00013,2]
[337594681,1725881441550,-151.0,0.00013,2]
[337594682,1725881441559,-151.0,0.00013,2]
[337594683,1725881441569,-153.866725,0.00013,2]
[337594684,1725881441579,-161.368914,0.00013,2]
[337594685,1725881441592,-1052.395451,0.00013,2]
[337594686,1725881441602,-1052.395451,0.00013,2]
[337594687,1725881441611,-1052.395451,0.00013,2]
[337594688,1725881441620,-1052.395451,0.00013,2]
[337594689,1725881441632,-1052.395451,0.00013,2]
[337594690,1725881441643,-1052.395451,0.00013,2]
[337594691,1725881441652,-1052.395451,0.00013,2]
[337594692,1725881441662,-1052.395451,0.00013,2]
[337594693,1725881441670,-1052.395451,0.00013,2]
[337594694,1725881441679,-1052.395451,0.00013,2]
[337594695,1725881441688,-151.0,0.00013,2]
[337594696,1725881441697,-151.0,0.00013,2]
[337594697,1725881441706,-151.0,0.00013,2]
[337594698,1725881441715,-151.0,0.00013,2]
[337594699,1725881441723,-151.0,0.00013,2]
[337594700,1725881441732,-231.378166,0.00013,2]
[337594701,1725881441741,-543.888865,0.00013,2]
[337594702,1725881441750,-543.888865,0.00013,2]
[337594703,1725881441759,-543.888865,0.00013,2]
[337594704,1725881441768,-543.888865,0.00013,2]
[337594705,1725881441778,-543.888865,0.00013,2]
[337594706,1725881441788,-543.888865,0.00013,2]
[337594707,1725881441797,-543.888865,0.00013,2]
[337594708,1725881441806,-543.888865,0.00013,2]
[337594709,1725881441815,-543.888865,0.00013,2]
[337594710,1725881441824,-543.888865,0.00013,2]
[337594711,1725881441832,-253.219703,0.00013,2]
[337594712,1725881441841,-253.219703,0.00013,2]
[337594713,1725881441851,-253.219703,0.00013,2]
[337594714,1725881441860,-253.219703,0.00013,2]
[337594715,1725881441869,-253.219703,0.00013,2]
[337594716,1725881441878,-253.219703,0.00013,2]
[337594717,1725881441887,-253.219703,0.00013,2]
[337594718,1725881441896,-253.219703,0.00013,2]
[337594719,1725881441905,-253.219703,0.00013,2]